[Event "9th Bangabandhu Rapid Men 2021"]
[Site "Dhaka"]
[Date "2021.04.03"]
[Round "8.4"]
[White "Jabed Al Azad"]
[Black "Mohammad Minhaz Uddin"]
[Result "0-1"]
[ECO "C42"]
[WhiteElo "2002"]
[BlackElo "2295"]
[Annotator "ChessBase"]
[PlyCount "97"]
[EventDate "2021.04.02"]
[EventType "swiss"]
[EventCountry "BAN"]
[SourceTitle "playchess.com"]
[Source "ChessBase"]
[SourceQuality "1"]
[TimeControl "1500+10"]

1. e4 {[%emt 0:01:10]} e5 {[%emt 0:00:00]} 2. Nf3 {[%emt 0:00:02]} Nf6 {[%emt 0:00:00]} 3. Nxe5 {[%emt 0:00:02]} d6 {[%emt 0:00:00]} 4. Nf3 {[%emt 0:00:00]} Nxe4 {[%emt 0:00:01]} 5. d4 {[%emt 0:00:02]} d5 {[%emt 0:00:01]} 6. Bd3 {[%emt 0:00:00]} Nc6 {[%emt 0:00:03]} 7. O-O {[%emt 0:00:14]} Bg4 {[%emt 0:00:02]} 8. Re1 {[%emt 0:00:08]} Be7 {[%emt 0:00:03]} 9. c3 {[%emt 0:01:14]} f5 {[%emt 0:00:02]} 10. Nbd2 {[%emt 0:00:12]} O-O {[%emt 0:00:03]} 11. h3 {[%emt 0:00:07]} Bh5 {[%emt 0:00:02]} 12. Be2 {[%emt 0:00:05]} Kh8 {[%emt 0:00:58]} 13. Nf1 {[%emt 0:00:58]} Bd6 {[%emt 0:00:29]} 14. Ne3 {[%emt 0:00:46]} Bxf3 {[%emt 0:01:02]} 15. Bxf3 {[%emt 0:00:10]} Qh4 {[%emt 0:00:13]} 16. Rf1 {[%emt 0:00:32]} Ne7 {[%emt 0:00:29]} 17. Bxe4 {[%emt 0:00:11]} dxe4 {[%emt 0:00:17]} 18. Nc4 {[%emt 0:00:11]} Rf6 {[%emt 0:02:13]} 19. f3 {[%emt 0:00:35]} Rg6 {[%emt 0:00:25]} 20. Nxd6 {[%emt 0:01:07]} cxd6 {[%emt 0:00:18]} 21. fxe4 {[%emt 0:00:33]} fxe4 {[%emt 0:00:24]} 22. Kh1 {[%emt 0:02:00]} Rf6 {[%emt 0:01:07]} 23. Be3 {[%emt 0:01:01]} Raf8 {[%emt 0:00:03]} 24. Rxf6 {[%emt 0:00:19]} Rxf6 {[%emt 0:00:44]} 25. c4 {[%emt 0:02:42]} Nf5 {[%emt 0:00:22]} 26. Qd2 {[%emt 0:03:16]} Re6 {[%emt 0:01:29]} 27. d5 {[%emt 0:00:35]} Re8 {[%emt 0:00:15]} 28. Kg1 {[%emt 0:00:21]} Qg3 {[%emt 0:01:18]} 29. Re1 {[%emt 0:00:16]} Nh4 {[%emt 0:00:30]} 30. Qf2 {[%emt 0:03:35]} Nf3+ {[%emt 0:00:09]} 31. Kf1 {[%emt 0:00:02]} Qxf2+ {[%emt 0:00:09]} 32. Kxf2 {[%emt 0:00:02]} Nxe1 {[%emt 0:00:03]} 33. Kxe1 {[%emt 0:00:02]} a6 {[%emt 0:00:48]} 34. Bf4 {[%emt 0:00:03]} Rc8 {[%emt 0:00:21]} 35. b3 {[%emt 0:00:08]} b5 {[%emt 0:00:01]} 36. Bxd6 {[%emt 0:00:48]} bxc4 {[%emt 0:00:01]} 37. bxc4 {[%emt 0:00:01]} Rxc4 {[%emt 0:00:03]} 38. Be7 {[%emt 0:01:16]} Rd4 {[%emt 0:00:03]} 39. d6 {[%emt 0:00:04]} Kg8 {[%emt 0:00:08]} 40. Ke2 {[%emt 0:00:11]} Rd3 {[%emt 0:00:01]} 41. a4 {[%emt 0:00:24]} Kf7 {[%emt 0:00:02]} 42. a5 {[%emt 0:00:11]} Ke6 {[%emt 0:00:02]} 43. Bf8 {[%emt 0:00:36]} g6 {[%emt 0:00:02]} 44. h4 {[%emt 0:00:21]} Kd7 {[%emt 0:00:19]} 45. g4 {[%emt 0:00:28]} Ra3 {[%emt 0:00:13]} 46. h5 {[%emt 0:00:01]} gxh5 {[%emt 0:00:05]} 47. gxh5 {[%emt 0:00:02]} Rxa5 {[%emt 0:00:03]} 48. Ke3 {[%emt 0:00:11]} Rxh5 {[%emt 0:00:07]} 49. Kd4 {[%emt 0:05:55]} 0-1

[Event "9th Bangabandhu Rapid Men 2021"]
[Site "Dhaka"]
[Date "2021.04.03"]
[Round "8.5"]
[White "Ahmed, Sheikh Nasir"]
[Black "Subrota, Biswas"]
[Result "0-1"]
[ECO "D13"]
[WhiteElo "2193"]
[BlackElo "2262"]
[Annotator "RC"]
[PlyCount "38"]
[EventDate "2021.04.02"]
[EventType "swiss"]
[EventCountry "BAN"]
[SourceTitle "playchess.com"]
[Source "ChessBase"]
[SourceQuality "1"]
[TimeControl "1500+10"]

1. d4 {[%emt 0:00:00]} d5 {[%emt 0:00:49]} 2. c4 {[%emt 0:00:24]} c6 {[%emt 0:00:02]} 3. Nf3 {[%emt 0:00:15]} Nf6 {[%emt 0:00:03]} 4. cxd5 {[%emt 0:00:26]} cxd5 {[%emt 0:00:02]} 5. Nc3 {[%emt 0:00:10]} Nc6 {[%emt 0:00:11]} 6. g3 {[%emt 0:00:34]} Bf5 {[%emt 0:00:21]} 7. Qb3 {[%emt 0:00:27]} Qd7 {[%emt 0:00:30]} 8. Bg2 {[%emt 0:00:48]} e6 {[%emt 0:00:18]} 9. O-O {[%emt 0:00:06]} Bd6 {[%emt 0:00:09]} 10. Bf4 {[%emt 0:00:26]} O-O {[%emt 0:00:50]} 11. Ne5 {[%emt 0:01:15]} Bxe5 {[%emt 0:01:17]} 12. dxe5 {[%emt 0:00:15]} Ng4 {[%emt 0:00:04]} 13. e4 {[%emt 0:00:24]} dxe4 {[%emt 0:00:05]} 14. Nxe4 {[%emt 0:00:14]} Bxe4 {[%emt 0:02:05]} 15. Bxe4 {[%emt 0:00:04]} Ngxe5 {[%emt 0:20:44]} 16. Bxe5 {[%emt 0:01:29]} Nxe5 {[%emt 0:00:00]} 17. Qxb7 {[%emt 0:00:02]} Qxb7 {[%emt 0:00:00]} 18. Bxb7 {[%emt 0:00:03]} Rab8 {[%emt 0:00:00]} 19. Bg2 {[%emt 0:00:03]} Rxb2 {[%emt 0:00:00]} 0-1

[Event "9th Bangabandhu Rapid Men 2021"]
[Site "Dhaka"]
[Date "2021.04.03"]
[Round "9.5"]
[White "Rahman, Taibur"]
[Black "Anata, Choudhury"]
[Result "0-1"]
[ECO "D00"]
[WhiteElo "2215"]
[BlackElo "2167"]
[Annotator "RC"]
[PlyCount "116"]
[EventDate "2021.04.02"]
[EventType "swiss"]
[EventCountry "BAN"]
[SourceTitle "playchess.com"]
[Source "ChessBase"]
[SourceQuality "1"]
[TimeControl "1500+10"]

1. d4 {[%emt 0:00:00]} Nf6 {[%emt 0:00:00]} 2. Bg5 {[%emt 0:00:00]} d5 {[%emt 0:00:00]} 3. e3 {[%emt 0:00:05]} c5 {[%emt 0:25:30]} 4. Bxf6 {[%emt 0:00:12]} gxf6 {[%emt 0:00:10]} 5. Nf3 {[%emt 0:25:33]} Nc6 {[%emt 0:00:10]} 6. Nc3 {[%emt 0:00:10]} e6 {[%emt 0:00:10]} 7. g3 {[%emt 0:00:10]} Bd7 {[%emt 0:00:00]} 8. Bg2 {[%emt 0:00:10]} a6 {[%emt 0:00:00]} 9. O-O {[%emt 0:00:10]} Bd6 {[%emt 0:00:30]} 10. e4 {[%emt 0:00:00]} cxd4 {[%emt 0:00:00]} 11. Nxd4 {[%emt 0:00:20]} Nxd4 {[%emt 0:00:00]} 12. Qxd4 {[%emt 0:00:00]} Be5 {[%emt 0:00:30]} 13. Qd2 {[%emt 0:00:00]} dxe4 {[%emt 0:00:10]} 14. Rfd1 {[%emt 0:00:30]} f5 {[%emt 0:00:00]} 15. Qe3 {[%emt 0:00:10]} Qc7 {[%emt 0:00:20]} 16. f3 {[%emt 0:00:10]} O-O-O {[%emt 0:00:10]} 17. fxe4 {[%emt 0:00:00]} f4 {[%emt 0:00:10]} 18. gxf4 {[%emt 0:00:00]} Bxf4 {[%emt 0:00:00]} 19. Qh3 {[%emt 0:00:30]} Rhg8 {[%emt 0:00:00]} 20. Kh1 {[%emt 0:00:00]} Rg6 {[%emt 0:00:30]} 21. Ne2 {[%emt 0:00:20]} Rh6 {[%emt 0:00:00]} 22. Nxf4 {[%emt 0:00:10]} Rxh3 {[%emt 0:00:00]} 23. Nxh3 {[%emt 0:00:10]} Bc6 {[%emt 0:00:30]} 24. c3 {[%emt 0:00:00]} Rg8 {[%emt 0:00:00]} 25. Rd2 {[%emt 0:00:20]} Qe5 {[%emt 0:00:00]} 26. Re1 {[%emt 0:00:10]} f5 {[%emt 0:00:30]} 27. Rde2 {[%emt 0:00:10]} Rxg2 {[%emt 0:00:00]} 28. Kxg2 {[%emt 0:00:00]} Bxe4+ {[%emt 0:00:20]} 29. Rxe4 {[%emt 0:00:00]} fxe4 {[%emt 0:00:00]} 30. Nf2 {[%emt 0:00:30]} Qg5+ {[%emt 0:00:00]} 31. Kf1 {[%emt 0:00:00]} e3 {[%emt 0:00:30]} 32. Nd1 {[%emt 0:00:20]} Qf4+ {[%emt 0:00:00]} 33. Ke2 {[%emt 0:00:10]} Qxh2+ {[%emt 0:00:00]} 34. Kxe3 {[%emt 0:00:10]} h5 {[%emt 0:00:00]} 35. Nf2 {[%emt 0:00:10]} Qg3+ {[%emt 0:00:00]} 36. Ke2 {[%emt 0:00:10]} Qe5+ {[%emt 0:00:00]} 37. Kf1 {[%emt 0:00:10]} Qb5+ {[%emt 0:00:00]} 38. Re2 {[%emt 0:00:00]} Qf5 {[%emt 0:00:00]} 39. Kg2 {[%emt 0:00:00]} h4 40. Re3 {[%emt 0:00:30]} Qg5+ {[%emt 0:00:00]} 41. Kf3 {[%emt 0:00:00]} Qd5+ {[%emt 0:01:40]} 42. Re4 {[%emt 0:00:20]} h3 {[%emt 0:00:00]} 43. c4 {[%emt 0:00:00]} Qh5+ {[%emt 0:00:00]} 44. Kg3 {[%emt 0:00:00]} h2 {[%emt 0:00:00]} 45. Rh4 {[%emt 0:00:00]} Qe5+ {[%emt 0:00:00]} 46. Kg2 {[%emt 0:00:00]} Qg5+ {[%emt 0:00:00]} 47. Rg4 {[%emt 0:00:00]} Qd2 {[%emt 0:00:00]} 48. Rh4 {[%emt 0:00:00]} Qxb2 {[%emt 0:00:00]} 49. Rxh2 {[%emt 0:00:00]} Qxa2 {[%emt 0:00:00]} 50. Rh4 {[%emt 0:00:00]} Qc2 {[%emt 0:00:00]} 51. Re4 {[%emt 0:00:00]} a5 {[%emt 0:01:40]} 52. Kf3 {[%emt 0:00:26]} a4 {[%emt 0:00:10]} 53. Re3 {[%emt 0:00:43]} Qxc4 {[%emt 0:00:00]} 54. Ne4 {[%emt 0:00:01]} Qf1+ {[%emt 0:00:00]} 55. Nf2 {[%emt 0:00:04]} Qc1 {[%emt 0:00:00]} 56. Ne4 {[%emt 0:01:06]} Qh1+ {[%emt 0:00:00]} 57. Ke2 {[%emt 0:00:00]} a3 {[%emt 0:00:00]} 58. Rxa3 Qxe4+ {[%emt 0:01:00]} 0-1